bitfinex/quotes_ETHUSD_20240731
["timestamp","ask_amount","ask_price","bid_price","bid_amount"]
[1722426566067,3.00683,3325.8,3325.7,35.0]
[1722426566222,3.00668,3326.0,3325.7,35.0]
[1722426566427,3.00668,3326.0,3325.8,0.06012898]
[1722426566627,3.0065,3326.2,3325.9,3.04901288]
[1722426566825,3.00618,3326.5,3326.0,0.06012718]
[1722426567029,3.00618,3326.5,3325.7,2.662]
[1722426567030,3.00643,3326.2,3326.1,0.31091401]
[1722426567208,6.01293,3326.2,3326.1,35.0]
[1722426567412,3.00643,3326.2,3326.1,35.0]
[1722426567609,3.00643,3326.2,3326.1,38.04901288]
[1722426569439,3.00643,3326.2,3326.1,3.04901288]
[1722426569654,3.00643,3326.2,3325.7,2.662]
[1722426569858,3.00643,3326.2,3325.8,35.55]
[1722426570428,3.00655,3326.1,3325.8,35.55]
[1722426570636,3.00666,3326.0,3325.8,35.55]
[1722426571797,3.0067,3325.9,3325.8,35.0]
[1722426572090,3.00679,3325.8,3325.7,2.662]
[1722426572301,3.00679,3325.8,3325.6,1.0]
[1722426572600,3.00679,3325.8,3325.6,36.34332]
[1722426572766,6.01364,3325.8,3325.7,4.0]
[1722426573308,3.0,3326.9,3325.7,4.0]
[1722426573458,3.00648,3326.2,3325.8,0.55]
[1722426573654,3.00657,3326.1,3325.8,0.55]
[1722426574286,3.00657,3326.1,3325.9,35.0]
[1722426574879,3.00644,3326.2,3325.9,35.0]
[1722426575990,6.01294,3326.2,3325.9,35.0]
[1722426576204,3.00653,3326.1,3326.0,3.04901288]
[1722426577455,3.00653,3326.1,3325.8,0.55]
[1722426577657,3.00653,3326.1,3325.9,35.0]
[1722426582595,3.00637,3326.3,3325.9,35.0]
[1722426582781,3.00649,3326.2,3325.9,35.0]
[1722426583296,3.00649,3326.2,3326.1,1.109]
[1722426584790,6.01297,3326.2,3326.1,1.109]
[1722426585864,3.00648,3326.2,3326.1,1.109]
[1722426588484,3.00661,3326.0,3325.9,35.0]
[1722426588809,6.01376,3325.7,3325.6,2.109]
[1722426588982,6.01376,3325.7,3325.6,5.0]
[1722426589567,6.01376,3325.7,3325.6,1.0]
[1722426589910,11.29124,3325.7,3325.6,1.0]
[1722426590142,8.28436,3325.7,3325.6,1.0]
[1722426594509,3.00697,3325.6,3325.5,1.109]
[1722426594751,6.01394,3325.6,3325.5,1.109]
[1722426597028,3.00748,3325.1,3324.8,7.47]
[1722426597261,3.007,3325.6,3324.9,4.0]
[1722426597562,3.00751,3325.0,3324.9,4.0]
[1722426597714,3.00751,3325.0,3324.9,4.455]
[1722426598736,3.00751,3325.0,3324.9,5.564]
[1722426600959,3.00743,3325.1,3324.9,0.455]
[1722426601156,3.00724,3325.3,3325.0,1.109]
[1722426601457,3.00724,3325.3,3325.2,1.109]
[1722426601957,3.00708,3325.5,3325.2,1.109]
[1722426602123,3.00708,3325.5,3325.4,1.109]
[1722426604987,3.0,3326.2,3325.4,1.109]
[1722426604988,3.00674,3325.9,3325.4,1.109]
[1722426605176,3.00693,3325.7,3325.5,0.06013331]
[1722426605331,3.00693,3325.7,3325.1,0.06013558]
[1722426605518,6.0135,3325.9,3325.2,0.55]
[1722426605719,3.00674,3325.9,3325.3,0.06013378]
[1722426606170,3.00682,3325.8,3325.3,0.06013378]
[1722426606461,3.00682,3325.8,3325.7,1.109]
[1722426606765,3.00661,3326.0,3325.7,1.109]
[1722426606965,3.00673,3325.9,3325.3,0.06013378]
[1722426607263,6.01329,3326.0,3325.9,1.109]
[1722426609122,6.01358,3325.8,3325.7,1.109]
[1722426614776,3.00679,3325.8,3325.7,1.109]
[1722426619078,3.00667,3326.0,3325.7,1.109]
[1722426619286,3.00667,3326.0,3325.9,1.109]
[1722426620467,3.00638,3326.3,3325.9,1.109]
[1722426620671,6.01278,3326.3,3326.2,1.109]
[1722426621470,3.00638,3326.3,3326.2,1.109]
[1722426621681,3.00618,3326.5,3326.2,1.109]
[1722426621879,3.00622,3326.5,3326.4,1.109]
[1722426628003,3.00608,3326.6,3326.4,1.109]
[1722426628175,2.2838,3327.0,3326.4,1.109]
[1722426628373,3.00616,3326.5,3326.4,1.109]
[1722426629136,3.00585,3326.9,3326.4,1.109]
[1722426629416,3.00585,3326.9,3326.8,1.109]
[1722426631790,6.01169,3326.9,3326.8,1.109]
[1722426632101,3.00584,3326.9,3326.6,1.109]
[1722426632301,3.00554,3327.2,3326.6,1.109]
[1722426632510,3.00598,3326.7,3326.6,1.109]
[1722426632801,3.00613,3326.6,3326.4,35.0]
[1722426633003,3.00607,3326.6,3326.5,1.109]
[1722426636802,6.01214,3326.6,3326.5,1.109]
[1722426637490,3.00607,3326.6,3326.5,1.109]
[1722426639303,3.00583,3326.9,3326.5,1.109]
[1722426639513,3.00583,3326.9,3326.7,1.109]
[1722426639879,3.0059,3326.8,3326.7,1.109]
[1722426640603,6.0118,3326.8,3326.7,1.109]
[1722426641907,3.00584,3326.9,3326.7,1.109]
[1722426642806,3.00589,3326.8,3326.7,1.109]
[1722426647317,2.3913,3327.4,3326.7,1.109]
[1722426647621,3.00562,3327.1,3326.8,0.06010849]
[1722426648009,2.3913,3327.4,3326.8,0.06010849]
[1722426648340,3.00567,3327.1,3326.8,0.06010849]
[1722426648542,3.00567,3327.1,3326.5,0.0601105]
[1722426648704,3.00567,3327.1,3327.0,1.109]
[1722426653839,3.00567,3327.1,3326.8,0.2]
[1722426654069,3.00567,3327.1,3327.0,1.109]
[1722426655328,3.00567,3327.1,3326.8,0.2]
[1722426655527,3.00571,3327.0,3326.9,1.109]
[1722426662065,3.00562,3327.1,3326.9,1.109]
[1722426662253,3.00562,3327.1,3326.8,0.26011349]
[1722426662254,3.00562,3327.1,3327.0,1.109]
[1722426665480,3.00555,3327.2,3327.0,1.109]
[1722426666794,3.00552,3327.3,3327.0,1.109]
[1722426666999,3.0054,3327.4,3327.0,1.109]
[1722426667864,3.00554,3327.2,3327.0,1.109]
[1722426668502,3.00557,3327.2,3327.0,1.109]
[1722426669018,3.00562,3327.1,3327.0,1.109]
[1722426672398,6.01124,3327.1,3327.0,1.109]
[1722426672791,3.00575,3327.0,3326.8,0.2]
[1722426673036,3.00575,3327.0,3326.9,1.109]
[1722426675193,6.0115,3327.0,3326.9,1.109]
[1722426677778,5.2599,3326.9,3326.8,0.2]
[1722426677918,11.2715,3326.9,3326.8,0.2]
[1722426678944,17.2773,3326.9,3326.8,0.2]
[1722426679115,20.41800618,3326.9,3326.8,0.2]
[1722426679297,19.49011562,3326.9,3326.8,0.00480926]
[1722426680347,16.48431562,3326.9,3326.8,0.00480926]
[1722426680844,19.61503426,3326.9,3326.8,0.00480926]
[1722426681259,16.48431562,3326.9,3326.8,0.00480926]
[1722426685506,14.23021562,3326.9,3326.8,0.00480926]
[1722426688259,3.00625,3326.4,3326.3,1.109]
[1722426689686,3.00608,3326.6,3326.3,1.109]
[1722426690008,3.00608,3326.6,3325.6,3.00696]
[1722426690009,3.00607,3326.6,3326.5,1.109]
[1722426691050,3.00607,3326.6,3326.5,1.44649]
[1722426691510,3.00584,3326.9,3326.5,1.44649]
[1722426691685,3.00538,3327.4,3326.7,1.109]
[1722426691886,3.0,3327.3,3326.7,1.109]
[1722426692071,3.00589,3326.8,3326.7,1.109]
[1722426692395,3.00609,3326.6,3326.5,1.109]
[1722426693297,4.44771986,3327.3,3326.1,2.254]
[1722426693298,3.00642,3326.3,3326.1,2.254]
[1722426693499,3.00634,3326.3,3326.2,4.0]
[1722426694008,3.00634,3326.3,3326.2,1.109]
[1722426695487,3.00625,3326.4,3326.2,1.109]
[1722426695689,3.00611,3326.6,3326.2,1.4453]
[1722426695858,3.00611,3326.6,3326.4,1.109]
[1722426696670,3.00613,3326.6,3326.4,1.109]
[1722426697277,3.00616,3326.5,3326.4,1.109]
[1722426701526,3.00595,3326.8,3326.1,2.3915]
[1722426701675,5.44224,3327.0,3325.5,2.3915]
[1722426701676,3.00649,3326.2,3325.5,2.3915]
[1722426701875,3.00649,3326.2,3326.1,1.109]
[1722426702079,3.00667,3326.0,3325.6,4.0]
[1722426702294,3.00667,3326.0,3325.8,1.109]
[1722426702295,3.0067,3325.9,3325.8,1.109]
[1722426702594,3.0067,3325.9,3325.6,4.0]
[1722426702595,3.00688,3325.7,3325.6,4.0]
[1722426703018,6.01376,3325.7,3325.6,4.0]
[1722426703586,2.23069179,3327.1,3325.7,2.3707]
[1722426703587,2.3601,3327.0,3325.7,2.3707]
[1722426703790,3.00644,3326.2,3325.7,2.3707]
[1722426704038,3.00644,3326.2,3326.1,1.109]
[1722426707634,6.01258,3326.4,3326.1,1.109]
[1722426708019,3.00613,3326.6,3326.3,1.109]
[1722426708221,3.00613,3326.6,3326.5,1.109]
[1722426710142,3.0059,3326.8,3326.5,1.109]
[1722426710461,3.00585,3326.9,3326.7,1.109]
[1722426711840,3.00589,3326.8,3326.7,1.109]
[1722426712016,3.00603,3326.7,3326.5,1.109]
[1722426712855,3.00607,3326.6,3326.5,1.109]
[1722426717116,3.00607,3326.6,3326.5,36.109]
[1722426717823,3.00596,3326.8,3326.5,36.109]
[1722426718057,3.00596,3326.8,3326.7,1.109]
[1722426718530,3.00589,3326.8,3326.7,1.109]
[1722426720746,3.00582,3326.9,3326.7,1.109]
[1722426720955,3.00566,3327.1,3326.7,1.109]
[1722426721262,3.00577,3327.0,3326.9,1.109]
[1722426722386,3.00568,3327.1,3326.9,1.109]
[1722426722678,6.01138,3327.1,3326.9,1.109]
[1722426722834,3.00571,3327.0,3326.9,1.109]
[1722426727549,3.00568,3327.1,3326.9,1.109]
[1722426727790,6.01138,3327.1,3326.9,1.109]
[1722426728006,3.00571,3327.0,3326.9,1.109]
[1722426729326,3.00568,3327.1,3326.9,1.109]
[1722426730519,3.00571,3327.0,3326.9,1.109]
[1722426731027,3.0056,3327.2,3326.9,1.109]
[1722426731187,3.00564,3327.1,3326.9,1.109]
[1722426732881,6.01132,3327.1,3326.9,1.109]
[1722426733077,3.00564,3327.1,3326.9,1.109]
[1722426733833,3.00549,3327.3,3326.9,1.109]
[1722426734185,3.00549,3327.3,3327.1,1.109]
[1722426734807,3.00553,3327.2,3327.1,1.109]
[1722426736224,3.00571,3327.0,3326.9,1.309]
[1722426738651,3.00563,3327.1,3326.9,1.309]
[1722426739511,3.00563,3327.1,3326.9,1.509]
[1722426742856,3.00571,3327.0,3326.9,1.509]
[1722426743556,3.00571,3327.0,3326.9,1.709]
[1722426746754,6.01142,3327.0,3326.9,0.6]
[1722426746947,6.846652,3327.0,3326.9,0.6]
[1722426747661,6.846652,3327.0,3326.9,0.8]
[1722426751723,6.846652,3327.0,3326.9,1.0]
[1722426754341,6.01142,3327.0,3326.9,1.0]
[1722426755456,6.01142,3327.0,3326.9,36.0]
[1722426756174,3.00571,3327.0,3326.9,1.0]
[1722426756470,3.00562,3327.1,3326.9,1.0]
[1722426756627,2.61136883,3327.2,3327.0,36.109]
[1722426757041,5.61691883,3327.2,3327.0,36.109]
[1722426757325,3.00562,3327.1,3327.0,36.109]
[1722426757529,3.00562,3327.1,3327.0,1.109]
[1722426758546,5.61723822,3327.3,3327.0,1.109]
[1722426758867,3.00555,3327.2,3327.0,1.109]
[1722426759374,5.61726822,3327.2,3327.0,1.109]
[1722426759534,3.0054,3327.4,3327.0,1.109]
[1722426759535,3.00546,3327.3,3327.0,1.109]
[1722426759732,3.00554,3327.2,3327.0,1.109]
[1722426761962,2.61212659,3327.4,3327.1,2.3963]
[1722426762176,7.48,3327.6,3327.3,1.109]
[1722426762345,3.00495,3327.9,3327.6,2.3963]
[1722426762677,2.61212659,3328.1,3327.8,1.109]
[1722426762971,3.00481,3328.0,3327.6,2.3963]
[1722426763157,1.30967066,3328.1,3327.6,2.3963]
[1722426763158,2.61212659,3328.1,3327.6,2.3963]
[1722426763361,5.61683659,3328.1,3328.0,1.109]
[1722426763578,5.61683659,3328.1,3327.0,2.4496]
[1722426763579,3.00559,3327.2,3327.0,2.4496]
[1722426763872,3.00559,3327.2,3327.1,4.0]
[1722426764382,3.00544,3327.3,3327.1,4.0]
[1722426764686,3.00544,3327.3,3327.2,1.109]
[1722426765071,6.01142,3327.0,3326.9,1.0]
[1722426765269,8.62327434,3327.0,3326.9,1.0]
[1722426765570,9.01713,3327.0,3326.9,1.0]
[1722426768489,6.01142,3327.0,3326.9,1.0]
[1722426768836,8.62307918,3327.0,3326.9,1.0]
[1722426769385,5.61736918,3327.0,3326.9,2.109]
[1722426769565,2.61165918,3327.1,3326.9,2.109]
[1722426769884,3.00562,3327.1,3327.0,1.109]
[1722426770041,6.01124,3327.1,3327.0,1.109]
[1722426770736,3.00562,3327.1,3327.0,1.109]
[1722426773881,5.61685078,3327.3,3327.0,1.109]
[1722426774256,3.00562,3327.1,3327.0,1.109]
[1722426778767,3.00555,3327.2,3327.0,1.109]
[1722426778968,3.00555,3327.2,3327.1,0.2109]
[1722426779168,3.00555,3327.2,3327.0,1.109]
[1722426780274,3.00562,3327.1,3327.0,1.109]
[1722426781205,5.61676665,3327.3,3327.0,1.109]
[1722426781404,3.00546,3327.3,3327.0,1.109]
[1722426781610,3.00546,3327.3,3327.1,0.2109]
[1722426781812,2.61130665,3327.6,3327.2,1.109]
[1722426782065,3.00513,3327.7,3327.4,1.109]
[1722426782066,3.00528,3327.5,3327.4,1.109]
[1722426782239,3.00518,3327.6,3327.4,1.109]
[1722426782513,3.00525,3327.5,3327.4,1.109]
[1722426783216,3.00525,3327.5,3327.4,4.15801288]
[1722426784081,3.00504,3327.8,3327.4,4.15801288]
[1722426784493,3.00504,3327.8,3327.7,1.109]
[1722426786622,6.01009,3327.8,3327.7,1.109]
[1722426787072,3.00518,3327.6,3327.5,1.109]
[1722426787521,3.00504,3327.8,3327.5,1.109]
[1722426787691,3.00504,3327.8,3327.3,2.424]
[1722426787692,3.00504,3327.8,3327.7,1.109]
[1722426788281,3.00504,3327.8,3327.5,1.109]
[1722426788626,3.00504,3327.8,3327.5,1.4623]
[1722426789725,3.00509,3327.7,3327.5,1.4623]
[1722426789884,3.00516,3327.6,3327.5,1.109]
[1722426794217,3.00516,3327.6,3327.1,0.2109]
[1722426794218,3.00542,3327.4,3327.1,0.2109]
[1722426794398,3.00542,3327.4,3327.3,1.109]
[1722426797642,3.00512,3327.7,3327.3,1.109]
[1722426797802,6.01024,3327.7,3327.6,1.109]
[1722426801691,3.00543,3327.4,3327.2,4.0]
[1722426801938,3.00543,3327.4,3327.3,1.109]
[1722426802437,2.3464,3328.0,3327.4,2.2658]
[1722426802438,3.00522,3327.6,3327.4,2.2658]
[1722426802591,3.00522,3327.6,3327.5,1.109]
[1722426804021,3.00509,3327.7,3327.5,1.109]
[1722426804352,3.00475,3328.1,3327.5,1.44648]
[1722426804553,3.00497,3327.9,3327.7,1.109]
[1722426804760,6.00995,3327.9,3327.7,1.109]
[1722426804955,3.00497,3327.9,3327.7,1.109]
[1722426805266,3.00496,3327.9,3327.7,1.109]
[1722426805612,3.00498,3327.8,3327.7,1.109]
[1722426806536,3.00496,3327.9,3327.7,1.109]
[1722426807506,6.00993,3327.9,3327.7,1.109]
[1722426808140,3.00496,3327.9,3327.7,1.109]
[1722426808356,3.00471,3328.1,3327.7,1.109]
[1722426808567,3.00461,3328.3,3328.0,3.5862]
[1722426808771,6.0092,3328.3,3328.2,1.109]
[1722426809774,3.0046,3328.3,3328.0,1.109]
[1722426810068,3.0046,3328.3,3328.2,1.109]
[1722426811464,6.00918,3328.3,3328.2,1.109]
[1722426811826,3.00471,3328.1,3328.0,1.109]
[1722426812276,6.00942,3328.1,3328.0,1.109]
[1722426812571,6.00942,3328.1,3327.0,6.00562]
[1722426812572,3.00512,3327.7,3327.1,2.4834]
[1722426812743,3.00512,3327.7,3327.3,4.0]
[1722426814187,6.01027,3327.7,3327.6,1.109]
[1722426814474,3.00512,3327.7,3327.6,1.109]
[1722426816880,3.00512,3327.7,3327.3,4.0]
[1722426816881,3.00523,3327.6,3327.3,4.0]
[1722426817065,3.00523,3327.6,3327.5,1.109]
[1722426817266,3.00523,3327.6,3327.5,5.109]
[1722426818701,3.00523,3327.6,3327.5,1.109]
[1722426818869,3.00503,3327.8,3327.5,1.109]
[1722426819069,3.00503,3327.8,3327.7,1.109]
[1722426820708,3.00498,3327.8,3327.7,1.109]
[1722426825501,3.0049,3327.9,3327.7,1.109]
[1722426826032,3.00472,3328.1,3327.7,1.109]
[1722426826228,3.00485,3328.0,3327.9,1.109]
[1722426826527,3.00473,3328.1,3327.9,1.109]
[1722426828525,6.00951,3328.1,3327.9,1.109]
[1722426828725,3.0048,3328.0,3327.9,1.109]
[1722426830543,6.0096,3328.0,3327.9,1.109]
[1722426833017,3.00504,3327.8,3327.7,1.109]
[1722426838816,3.0049,3327.9,3327.7,1.109]
[1722426840549,6.00985,3327.9,3327.7,1.109]
[1722426840861,3.0049,3327.9,3327.7,1.109]
[1722426841361,2.61146574,3328.2,3327.7,1.109]
[1722426841563,3.00496,3327.9,3327.7,1.109]
[1722426842436,6.00991,3327.9,3327.7,1.109]
[1722426842617,3.00495,3327.9,3327.7,1.109]
[1722426842819,3.00498,3327.8,3327.7,1.109]
[1722426848660,3.00489,3328.0,3327.7,1.109]
[1722426848831,5.61716651,3328.1,3327.9,1.109]
[1722426851155,5.61766443,3328.1,3327.9,1.109]
[1722426851932,2.61289443,3328.1,3327.9,1.109]
[1722426852834,2.61289443,3328.2,3327.9,1.109]
[1722426853034,5.61747443,3328.3,3327.9,1.109]
[1722426853365,2.61289443,3328.2,3327.9,1.109]
[1722426854164,5.61753443,3328.2,3327.9,1.109]
[1722426854373,3.00464,3328.2,3327.9,1.109]
[1722426854667,5.61773871,3328.2,3327.9,1.109]
[1722426855972,5.61773871,3328.2,3328.1,1.109]
[1722426857756,5.61776191,3328.2,3328.1,1.109]
[1722426860966,3.00464,3328.2,3328.1,1.109]
[1722426863665,3.00464,3328.2,3328.1,1.309]
[1722426865207,6.00931,3328.2,3328.1,1.309]
[1722426865874,6.00931,3328.2,3328.1,0.2]
[1722426867764,6.00931,3328.2,3328.1,0.4]
[1722426871897,6.00931,3328.2,3328.1,0.6]
[1722426874690,3.00464,3328.2,3328.1,0.6]
[1722426875896,3.00464,3328.2,3328.1,1.909]
[1722426876845,6.00926,3328.2,3328.1,1.909]
[1722426876998,6.00926,3328.2,3328.1,0.8]
[1722426878440,6.00924,3328.2,3328.1,0.8]
[1722426879850,6.8713118,3328.2,3328.1,0.8]
[1722426880085,6.8713118,3328.2,3328.1,1.0]
[1722426880086,14.95920975,3328.2,3328.1,1.0]
[1722426880352,12.3477318,3328.2,3328.1,1.0]
[1722426880498,9.3431118,3328.2,3328.1,1.0]
[1722426880831,12.3477318,3328.2,3328.1,1.0]
[1722426882640,3.00462,3328.2,3328.1,1.0]
[1722426882809,8.34624,3328.2,3328.1,1.0]
[1722426883135,11.35086,3328.2,3328.1,1.0]
[1722426883346,8.34624,3328.2,3328.1,1.0]
[1722426884143,8.34624,3328.2,3326.7,2.3179]
[1722426884144,2.386,3327.5,3326.7,2.3179]
[1722426884342,3.00589,3326.8,3326.7,2.3179]
[1722426884501,6.01155,3327.0,3326.7,2.3179]
[1722426884704,3.00576,3327.0,3326.8,1.109]
[1722426885158,3.0058,3326.9,3326.8,1.109]
[1722426887108,3.00576,3327.0,3326.8,1.109]
[1722426887109,3.00571,3327.0,3326.8,1.109]
[1722426888016,3.0058,3326.9,3326.8,1.109]
[1722426889021,3.0057,3327.1,3326.8,1.109]
[1722426889238,3.0057,3327.1,3327.0,1.109]
[1722426889422,6.01138,3327.1,3327.0,1.109]
[1722426894027,3.00571,3327.0,3326.8,1.109]
[1722426894253,3.0058,3326.9,3326.8,1.109]
[1722426894452,6.0116,3326.9,3326.8,1.109]
[1722426894762,6.0116,3326.9,3326.8,36.109]
[1722426896058,3.00567,3327.1,3326.8,36.109]
[1722426896264,7.99930972,3327.5,3326.8,36.109]
[1722426896265,3.00575,3327.0,3326.8,36.109]
[1722426896663,3.00557,3327.2,3326.8,36.109]
[1722426896966,7.48,3327.7,3327.1,1.109]
[1722426897180,3.00531,3327.5,3327.3,1.109]
[1722426897528,3.00524,3327.6,3327.3,1.109]
[1722426897728,6.01047,3327.6,3327.5,1.109]
[1722426901952,6.01047,3327.6,3327.1,35.0]
[1722426901953,3.00534,3327.4,3327.1,36.109]
[1722426902160,3.00553,3327.2,3327.1,1.109]
[1722426902357,3.00562,3327.1,3326.9,1.109]
[1722426902787,3.00562,3327.1,3326.9,36.109]
[1722426908846,3.0055,3327.3,3326.9,36.109]
[1722426909087,3.00553,3327.2,3327.1,1.109]
[1722426909798,3.00553,3327.2,3327.1,36.109]
[1722426910177,3.00553,3327.2,3327.1,35.0]
[1722426910178,6.01106,3327.2,3327.1,35.0]
[1722426910405,3.00528,3327.5,3326.9,1.109]
[1722426910406,3.00571,3327.0,3326.9,1.109]
[1722426910804,3.00571,3327.0,3326.9,36.109]
[1722426911371,3.00571,3327.0,3326.9,1.109]
[1722426914989,3.00584,3326.9,3326.6,2.3245]
[1722426915190,3.00584,3326.9,3326.8,1.109]
[1722426915423,6.01148,3327.0,3326.8,1.109]
[1722426915605,3.00571,3327.0,3326.8,1.109]
[1722426916538,3.0058,3326.9,3326.8,1.109]
[1722426925263,3.00572,3327.0,3326.8,1.109]
[1722426925393,3.00562,3327.1,3326.8,3.5173]
[1722426925737,3.00562,3327.1,3327.0,1.109]
[1722426926340,2.60776543,3327.6,3327.0,1.46073]
[1722426926550,3.00507,3327.8,3327.5,1.109]
[1722426926706,3.0049,3327.9,3327.7,1.109]
[1722426926906,3.00498,3327.8,3327.7,1.109]
[1722426927865,3.0049,3327.9,3327.7,1.109]
[1722426929172,3.00475,3328.1,3327.7,1.109]
[1722426929173,3.00486,3328.0,3327.7,1.109]
[1722426930762,3.0049,3327.9,3327.7,1.109]
[1722426931467,5.61340603,3328.3,3327.7,1.109]
[1722426931669,5.61340603,3328.3,3327.5,2.48389793]
[1722426931670,3.00476,3328.1,3327.9,1.109]
[1722426932470,3.0048,3328.0,3327.9,1.109]
[1722426932925,3.00493,3327.9,3327.7,1.109]
[1722426934580,3.00495,3327.9,3327.7,1.109]
[1722426935889,3.00498,3327.8,3327.7,1.109]
[1722426936040,3.00523,3327.6,3327.1,2.3955]
[1722426936239,3.00523,3327.6,3327.5,1.109]
[1722426936757,3.00503,3327.8,3327.5,1.109]
[1722426937091,6.01009,3327.8,3327.5,1.109]
[1722426937254,3.00526,3327.5,3327.4,1.109]
[1722426939160,3.00503,3327.8,3327.4,1.109]
[1722426939368,3.00512,3327.7,3327.4,1.109]
[1722426939677,3.00512,3327.7,3327.1,2.3955]
[1722426939678,3.00512,3327.7,3327.6,1.109]
[1722426945105,6.01024,3327.7,3327.6,1.109]
[1722426945292,6.635893,3327.7,3327.6,1.109]
[1722426946511,3.00512,3327.7,3327.6,1.109]
[1722426946871,3.00494,3327.9,3327.6,1.109]
[1722426947073,6.00991,3327.9,3327.6,3.5046]
[1722426947287,3.00494,3327.9,3327.6,3.5046]
[1722426947482,3.00494,3327.9,3327.8,1.109]
[1722426949534,3.00468,3328.2,3327.8,1.109]
[1722426950717,3.00471,3328.1,3327.8,1.109]
[1722426951992,3.00482,3328.0,3327.8,1.109]
[1722426953314,3.00489,3327.9,3327.8,1.109]
[1722426958981,3.00513,3327.7,3327.5,35.0]
[1722426959187,3.00513,3327.7,3327.5,1.109]
[1722426960526,3.00516,3327.6,3327.5,1.109]
[1722426960687,0.601029,3327.6,3327.0,2.2808]
[1722426960885,5.34104,3327.9,3326.7,9.7508]
[1722426960886,3.00563,3327.1,3326.7,9.7508]
[1722426961149,3.00563,3327.1,3327.0,1.109]
[1722426962787,3.00544,3327.3,3327.0,1.109]
[1722426962999,3.00563,3327.1,3327.0,1.109]
[1722426963213,3.00535,3327.4,3327.0,4.15801288]
[1722426963414,3.00535,3327.4,3327.2,1.109]
[1722426963940,3.00527,3327.5,3327.2,3.4638]
[1722426964103,3.00526,3327.5,3327.4,1.109]
[1722426965013,3.00514,3327.7,3327.4,1.45538]
[1722426965625,3.00514,3327.7,3327.6,1.109]
[1722426965993,3.00502,3327.8,3327.6,1.109]
[1722426967257,3.00519,3327.6,3326.8,35.0]
[1722426967558,3.00513,3327.7,3327.3,1.109]
[1722426968005,3.00517,3327.6,3327.5,1.109]
[1722426968352,3.00517,3327.6,3326.7,2.4754]
[1722426968353,3.00559,3327.2,3326.7,2.4754]
[1722426968553,3.0054,3327.4,3327.2,1.109]
[1722426969849,5.3932,3327.6,3326.8,0.24754]
[1722426970056,3.00567,3327.1,3326.9,1.109]
[1722426971023,6.01136,3327.1,3326.9,1.109]
[1722426971407,3.00571,3327.0,3326.9,1.109]
[1722426976044,3.00553,3327.2,3326.9,1.109]
[1722426976369,3.00553,3327.2,3327.1,1.109]
[1722426977579,3.0052,3327.6,3327.1,1.109]
[1722426977887,3.00536,3327.4,3327.3,1.109]
[1722426978240,3.00536,3327.4,3327.3,36.109]
[1722426978571,3.00536,3327.4,3327.3,1.109]
[1722426978926,3.0052,3327.6,3327.3,1.109]
[1722426979629,3.00536,3327.4,3327.3,1.109]
[1722426981027,7.48,3327.9,3327.3,6.60301288]
[1722426981223,3.00492,3327.9,3327.7,1.109]
[1722426981458,6.00988,3327.9,3327.7,1.109]
[1722426981676,3.00492,3327.9,3327.7,1.109]
[1722426982176,3.00492,3327.9,3327.5,1.109]
[1722426982342,3.00508,3327.7,3327.5,1.109]
[1722426983028,3.005,3327.8,3327.5,1.109]
[1722426983229,3.00477,3328.1,3327.5,1.109]
[1722426983431,3.0049,3327.9,3327.5,1.109]
[1722426983686,3.00505,3327.8,3327.5,1.109]
[1722426985181,3.00505,3327.8,3327.6,35.0]
[1722426986576,3.00511,3327.7,3327.3,2.445]
[1722426986786,3.00511,3327.7,3327.6,1.109]
[1722426988372,3.00498,3327.9,3327.6,1.109]
[1722426989320,3.0048,3328.0,3327.8,1.109]
[1722426989875,6.00968,3328.0,3327.8,1.109]
[1722426990079,15.79006,3328.5,3327.8,3.602]
[1722426990080,3.00446,3328.4,3327.8,3.602]
[1722426990381,3.00446,3328.4,3328.2,1.109]
[1722426990992,6.00898,3328.4,3328.2,1.109]
[1722426991192,3.00453,3328.3,3328.2,1.109]
[1722426992276,3.00464,3328.2,3328.0,1.109]
[1722426992483,3.00471,3328.1,3328.0,1.109]
[1722426992784,5.32951,3328.1,3327.8,1.109]
[1722426993011,3.00485,3328.0,3327.8,1.109]
[1722426993321,3.0046,3328.3,3327.8,1.109]
[1722426993626,3.00464,3328.2,3328.0,1.109]
[1722426994932,3.00458,3328.3,3328.0,1.109]
[1722426995098,3.00458,3328.3,3328.2,1.109]
[1722426996099,6.00917,3328.3,3328.2,1.109]
[1722426996821,3.00469,3328.2,3327.6,35.0]
[1722426997121,3.00469,3328.2,3328.1,1.109]
[1722426998786,3.00462,3328.2,3328.1,1.109]
[1722427000090,3.00454,3328.3,3328.1,1.109]
[1722427000942,3.0044,3328.5,3328.1,1.109]
[1722427001233,6.00919,3328.3,3328.1,1.109]
[1722427001938,3.00459,3328.3,3328.1,1.109]